Workbook

Sheet unificação
A1: DEPARTAMENTO MUNICIPAL DE LIMPEZA URBANA
A2: DIVISÃO DE LIMPEZA E COLETA
A3: ASSESSORIA TÉCNICA
A5: Coleta Automatizada de Resíduos Sólidos Urbanos
A6: Planilha de Composição de Custos - abril 21
A8: Síntese dos custos mensal
A9: Item | D9: Custo (R$/mês) | F9: %
A10: =+A50 -> 1. Mão-de-obra | D10: =+F224 -> 252745.0903 | F10: =+D10/F$570 -> 0.1055779433
A11: =+A227 -> 2. Uniformes e Equipamentos de Proteção Individual | D11: =+F268 -> 4117.817751 | F11: =+D11/F$570 -> 0.001720115427
A12: =+A270 -> 3. Veículos e Equipamentos | D12: =+F463 -> 801572.7234 | F12: =+D12/F$570 -> 0.3348369673
A13: =+A465 -> 4. Contêineres | D13: =+F516 -> 754358.4792 | F13: =+D13/F$570 -> 0.3151143971
A14: =+A518 -> 5. Ferramentas e Materiais de Consumo | D14: =+F535 -> 19638.3135 | F14: =+D14/F$570 -> 0.008203414542
A15: =+A537 -> 6. Monitoramento da Frota | D15: =+F547 -> 10441.66667 | F15: =+D15/F$570 -> 0.004361745227
A16: =+A549 -> 7. Despesas Iniciais com Implantação | D16: =+F558 -> 4000.955 | F16: =+D16/F$570 -> 0.001671298935
A17: =+A562 -> 8. Benefícios e Despesas Indiretas - BDI | D17: =+F568 -> 547044.3886 | F17: =+D17/F$570 -> 0.2285141182
A18: Custo total mensal com coleta automatizada | D18: =SUM(D10:E17) -> 2393919.434 | F18: =SUM(F10:F17) -> 1
A22: Síntese de quantitativos
A23: Mão-de-obra | D23: Quantidade
A24: =+A52 -> 1.1. Operário Turno do Dia | D24: =+C63 -> 7
A25: =+A66 -> 1.2. Operário Turno da Noite | D25: =+C79 -> 2
A26: =+A82 -> 1.3. Motorista Turno do Dia | D26: =+C93 -> 16
A27: =+A96 -> 1.4. Motorista Turno da Noite | D27: =+C109 -> 13
A28: =+A112 -> 1.5. Motorista automóvel Turno do Dia | D28: =+C120 -> 1
A29: =+A123 -> 1.6. Motorista automóvel Turno da Noite | D29: =+C133 -> 1
A30: =+A136 -> 1.7. Fiscal Turno do Dia/vespertino | D30: =+C147 -> 2
A31: =+A150 -> 1.8. Fiscal Turno da Noite | D31: =+C163 -> 1
A32: =+A166 -> 1.9. Auxiliar Operacional Turno do Dia/vespertino | D32: =+C176 -> 2
A33: =+A179 -> 1.10. Auxiliar Operacional Turno da Noite | D33: =+C191 -> 1
A34: =+A194 -> 1.11. Gerente Operacional | D34: =+C198 -> 1
A35: Total de mão-de-obra (postos de trabalho) | D35: =SUM(D24:D34) -> 47
A37: Veículos e Equipamentos | E37: Quantidade
A38: =+A272 -> 3.1. Veículo Coletor Compactador (Truck) | E38: =+C276 -> 9
A39: =+A331 -> 3.2. Veículo Equipado com Lavadora de Contêiner | E39: =+C335 -> 4
A40: =+A390 -> 3.3. Veículo Toco com Carroceria de Madeira | E40: =+C394 -> 2
A41: =+A453 -> 3.4. Veículos e Equipamentos | B41: =+A456 -> Picape, cabine dupla | E41: =+C456 -> 2
A42: =+A41 -> 3.4. Veículos e Equipamentos | B42: =+A457 -> Automóvel (locação) | E42: =+C457 -> 2
A44: Contêineres | E44: Quantidade
A45: =+A467 -> 4.1. Contêiner de Aço Galvanizado de 2,4m³, para sistema de carga lateral | E45: =+C471 -> 1170
A46: =+A491 -> 4.2. Contêiner de Aço Galvanizado de 3,2m³, para sistema de carga lateral | E46: =+C495 -> 1580
A50: 1. Mão-de-obra
A52: 1.1. Operário Turno do Dia
A53: Discriminação | B53: Unidade | C53: Quantidade | D53: Preço unitário | E53: Subtotal | F53: Total (R$)
A54: Salário Normal | B54: mês | C54: 1 | D54: =[1]insumos!C2 -> 1184.93 | E54: =C54*D54 -> 1184.93
A55: Horas Extras (100%) | B55: hora | C55: 8 | D55: =(D54+E59)/220*2 -> 15.08092727 | E55: =C55*D55 -> 120.6474182
A56: Horas Extras (50%) | B56: hora | C56: 16 | D56: =(D54+E59)/220*1.5 -> 11.31069545 | E56: =C56*D56 -> 180.9711273
A57: Desc. Semanal Remunerado HE 100% | B57: hora | C57: =+C55*63/302 -> 1.668874172 | D57: =+D55 -> 15.08092727 | E57: =C57*D57 -> 25.16817002
A58: Desc. Semanal Remunerado HE 50% | B58: hora | C58: =+C56*63/302 -> 3.337748344 | D58: =+D56 -> 11.31069545 | E58: =C58*D58 -> 37.75225503
A59: Adicional de Insalubridade | B59: % | C59: 40 | D59: =D54 -> 1184.93 | E59: =C59*D59/100 -> 473.972
A60: Soma | E60: =SUM(E54:E59) -> 2023.44097
A61: Encargos Sociais | B61: % | C61: =+B626*100 -> 75.84 | D61: =E60 -> 2023.44097 | E61: =D61*C61/100 -> 1534.577632
A62: Total por Operário | E62: =E60+E61 -> 3558.018603
A63: Total do Efetivo | B63: homem | C63: 7 | D63: =E62 -> 3558.018603 | E63: =C63*D63 -> 24906.13022
F64: =E63 -> 24906.13022
A66: 1.2. Operário Turno da Noite
A67: Discriminação | B67: Unidade | C67: Quantidade | D67: Preço unitário | E67: Subtotal | F67: Total (R$)
A68: Salário Normal | B68: mês | C68: 1 | D68: =D54 -> 1184.93 | E68: =C68*D68 -> 1184.93
A69: Horas Extras (100%) | B69: hora | C69: 8 | D69: =(D68+E75)/220*2 -> 15.08092727 | E69: =C69*D69 -> 120.6474182
A70: Horas Extras (50%) noturna | B70: hora | C70: 8 | D70: =(D68+E75)/220*1.5*1.2 -> 13.57283455 | E70: =C70*D70 -> 108.5826764
A71: Adicional Noturno | B71: hora | C71: 99 | D71: =(D68+E75)/220*0.2 -> 1.508092727 | E71: =C71*D71 -> 149.30118
A72: Desc. Semanal Remunerado HE 100% | B72: hora | C72: =+C70*63/302 -> 1.668874172 | D72: =+D69 -> 15.08092727 | E72: =C72*D72 -> 25.16817002
A73: Desc. Semanal Remunerado HEn 50% | B73: hora | C73: =+C70*63/302 -> 1.668874172 | D73: =+D70 -> 13.57283455 | E73: =C73*D73 -> 22.65135302
A74: Desc. Semanal Remunerado Ad. Notur. | B74: hora | C74: =+C71*63/302 -> 20.65231788 | D74: =+D71 -> 1.508092727 | E74: =C74*D74 -> 31.1456104
A75: Adicional de Insalubridade | B75: % | C75: =+C59 -> 40 | D75: =D68 -> 1184.93 | E75: =C75*D75/100 -> 473.972
A76: Soma | E76: =SUM(E68:E75) -> 2116.398408
A77: Encargos Sociais | B77: % | C77: =+C61 -> 75.84 | D77: =E76 -> 2116.398408 | E77: =D77*C77/100 -> 1605.076553
A78: Total por Operário | E78: =E76+E77 -> 3721.474961
A79: Total do Efetivo | B79: homem | C79: 2 | D79: =E78 -> 3721.474961 | E79: =C79*D79 -> 7442.949921
F80: =E79 -> 7442.949921
A82: 1.3. Motorista Turno do Dia
A83: Discriminação | B83: Unidade | C83: Quantidade | D83: Preço unitário | E83: Subtotal | F83: Total (R$)
A84: Salário Normal | B84: mês | C84: 1 | D84: =[1]insumos!C3 -> 1804.93 | E84: =C84*D84 -> 1804.93
A85: Horas Extras (100%) | B85: hora | C85: =+C55 -> 8 | D85: =(D84+E89)/220*2 -> 20.40845455 | E85: =C85*D85 -> 163.2676364
A86: Horas Extras (50%) | B86: hora | C86: =+C56 -> 16 | D86: =(D84+E89)/220*1.5 -> 15.30634091 | E86: =C86*D86 -> 244.9014545
A87: Desc. Semanal Remunerado HE 100% | B87: hora | C87: =+C85*63/302 -> 1.668874172 | D87: =+D85 -> 20.40845455 | E87: =C87*D87 -> 34.05914269
A88: Desc. Semanal Remunerado HE 50% | B88: hora | C88: =+C86*63/302 -> 3.337748344 | D88: =+D86 -> 15.30634091 | E88: =C88*D88 -> 51.08871403
A89: Adicional de Insalubridade | B89: % | C89: 40 | D89: 1100 | E89: =C89*D89/100 -> 440
A90: Soma | E90: =SUM(E84:E89) -> 2738.246948
A91: Encargos Sociais | B91: % | C91: =+C61 -> 75.84 | D91: =E90 -> 2738.246948 | E91: =D91*C91/100 -> 2076.686485
A92: Total por Motorista | E92: =E90+E91 -> 4814.933433
A93: Total do Efetivo | B93: homem | C93: 16 | D93: =E92 -> 4814.933433 | E93: =C93*D93 -> 77038.93492
F94: =E93 -> 77038.93492
A96: 1.4. Motorista Turno da Noite
A97: Discriminação | B97: Unidade | C97: Quantidade | D97: Preço unitário | E97: Subtotal | F97: Total (R$)
A98: Salário Normal | B98: mês | C98: 1 | D98: =D84 -> 1804.93 | E98: =C98*D98 -> 1804.93
A99: Horas Extras (100%) | B99: hora | C99: =+C69 -> 8 | D99: =(D98+E105)/220*2 -> 20.40845455 | E99: =C99*D99 -> 163.2676364
A100: Horas Extras (50%) noturna | B100: hora | C100: =+C70 -> 8 | D100: =(D98+E105)/220*1.5*1.2 -> 18.36760909 | E100: =C100*D100 -> 146.9408727
A101: Adicional Noturno | B101: hora | C101: =C71 -> 99 | D101: =(D98+E105)/220*0.2 -> 2.040845455 | E101: =C101*D101 -> 202.0437
A102: Desc. Semanal Remunerado HE 100% | B102: hora | C102: =+C100*63/302 -> 1.668874172 | D102: =+D99 -> 20.40845455 | E102: =C102*D102 -> 34.05914269
A103: Desc. Semanal Remunerado HE 50% | B103: hora | C103: =+C100*63/302 -> 1.668874172 | D103: =+D100 -> 18.36760909 | E103: =C103*D103 -> 30.65322842
A104: Desc. Semanal Remunerado Ad. Notur. | B104: hora | C104: =+C101*63/302 -> 20.65231788 | D104: =+D101 -> 2.040845455 | E104: =C104*D104 -> 42.14818907
A105: Adicional de Insalubridade | B105: % | C105: =+C89 -> 40 | D105: =+D89 -> 1100 | E105: =C105*D105/100 -> 440
A106: Soma | E106: =SUM(E98:E105) -> 2864.042769
A107: Encargos Sociais | B107: % | C107: =+C61 -> 75.84 | D107: =E106 -> 2864.042769 | E107: =D107*C107/100 -> 2172.090036
A108: Total por Motorista | E108: =E106+E107 -> 5036.132805
A109: Total do Efetivo | B109: homem | C109: 13 | D109: =E108 -> 5036.132805 | E109: =C109*D109 -> 65469.72647
F110: =E109 -> 65469.72647
A112: 1.5. Motorista automóvel Turno do Dia
A113: Discriminação | B113: Unidade | C113: Quantidade | D113: Preço unitário | E113: Subtotal | F113: Total (R$)
A114: Salário Normal | B114: mês | C114: 1 | D114: =+[1]insumos!C4 -> 1761 | E114: =C114*D114 -> 1761
A115: Horas Extras (100%) | B115: hora | C115: =+C85 -> 8 | D115: =(D114)/220*2 -> 16.00909091 | E115: =C115*D115 -> 128.0727273
A116: Desc. Semanal Remunerado HE 100% | B116: hora | C116: =+C115*63/302 -> 1.668874172 | D116: =+D115 -> 16.00909091 | E116: =C116*D116 -> 26.71715834
A117: Soma | E117: =SUM(E114:E116) -> 1915.789886
A118: Encargos Sociais | B118: % | C118: =+C91 -> 75.84 | D118: =E117 -> 1915.789886 | E118: =D118*C118/100 -> 1452.935049
A119: Total por Motorista | E119: =E117+E118 -> 3368.724935
A120: Total do Efetivo | B120: homem | C120: 1 | D120: =E119 -> 3368.724935 | E120: =C120*D120 -> 3368.724935
F121: =E120 -> 3368.724935
A123: 1.6. Motorista automóvel Turno da Noite
A124: Discriminação | B124: Unidade | C124: Quantidade | D124: Preço unitário | E124: Subtotal | F124: Total (R$)
A125: Salário Normal | B125: mês | C125: 1 | D125: =D114 -> 1761 | E125: =C125*D125 -> 1761
A126: Horas Extras (100%) | B126: hora | C126: =+C99 -> 8 | D126: =(D125)/220*2 -> 16.00909091 | E126: =C126*D126 -> 128.0727273
A127: Adicional Noturno | B127: hora | C127: =C101 -> 99 | D127: =(D125)/220*0.2 -> 1.600909091 | E127: =C127*D127 -> 158.49
A128: Desc. Semanal Remunerado HE 100% | B128: hora | C128: =+C126*63/302 -> 1.668874172 | D128: =+D126 -> 16.00909091 | E128: =C128*D128 -> 26.71715834
A129: Desc. Semanal Remunerado Ad. Notur. | B129: hora | C129: =+C127*63/302 -> 20.65231788 | D129: =+D127 -> 1.600909091 | E129: =C129*D129 -> 33.06248344
A130: Soma | E130: =SUM(E125:E129) -> 2107.342369
A131: Encargos Sociais | B131: % | C131: =+C91 -> 75.84 | D131: =E130 -> 2107.342369 | E131: =D131*C131/100 -> 1598.208453
A132: Total por Motorista | E132: =E130+E131 -> 3705.550822
A133: Total do Efetivo | B133: homem | C133: 1 | D133: =E132 -> 3705.550822 | E133: =C133*D133 -> 3705.550822
F134: =E133 -> 3705.550822
A136: 1.7. Fiscal Turno do Dia/vespertino
A137: Discriminação | B137: Unidade | C137: Quantidade | D137: Preço unitário | E137: Subtotal | F137: Total (R$)
A138: Salário Normal | B138: mês | C138: 1 | D138: =+ROUND(D54*1.5,2) -> 1777.4 | E138: =C138*D138 -> 1777.4
A139: Horas Extras (100%) | B139: hora | C139: =+C85 -> 8 | D139: =(D138+E143)/220*2 -> 20.15818182 | E139: =C139*D139 -> 161.2654545
A140: Horas Extras (50%) | B140: hora | C140: =+C86 -> 16 | D140: =(D138+E143)/220*1.5 -> 15.11863636 | E140: =C140*D140 -> 241.8981818
A141: Desc. Semanal Remunerado HE 100% | B141: hora | C141: =+C139*63/302 -> 1.668874172 | D141: =+D139 -> 20.15818182 | E141: =C141*D141 -> 33.64146899
A142: Desc. Semanal Remunerado HE 50% | B142: hora | C142: =+C140*63/302 -> 3.337748344 | D142: =+D140 -> 15.11863636 | E142: =C142*D142 -> 50.46220349
A143: Adicional de Insalubridade | B143: % | C143: =+C59 -> 40 | D143: =+D89 -> 1100 | E143: =C143*D143/100 -> 440
A144: Soma | E144: =SUM(E138:E143) -> 2704.667309
A145: Encargos Sociais | B145: % | C145: =+C61 -> 75.84 | D145: =E144 -> 2704.667309 | E145: =D145*C145/100 -> 2051.219687
A146: Total por Fiscal | E146: =E144+E145 -> 4755.886996
A147: Total do Efetivo | B147: homem | C147: 2 | D147: =E146 -> 4755.886996 | E147: =C147*D147 -> 9511.773992
F148: =E147 -> 9511.773992
A150: 1.8. Fiscal Turno da Noite
A151: Discriminação | B151: Unidade | C151: Quantidade | D151: Preço unitário | E151: Subtotal | F151: Total (R$)
A152: Salário Normal | B152: mês | C152: 1 | D152: =+D138 -> 1777.4 | E152: =C152*D152 -> 1777.4
A153: Horas Extras (100%) | B153: hora | C153: =+C99 -> 8 | D153: =(D152+E159)/220*2 -> 20.15818182 | E153: =C153*D153 -> 161.2654545
A154: Horas Extras (50%) noturna | B154: hora | C154: =+C100 -> 8 | D154: =(D152+E159)/220*1.5*1.2 -> 18.14236364 | E154: =C154*D154 -> 145.1389091
A155: Adicional Noturno | B155: hora | C155: =C71 -> 99 | D155: =(D152+E159)/220*0.2 -> 2.015818182 | E155: =C155*D155 -> 199.566
A156: Desc. Semanal Remunerado HE 100% | B156: hora | C156: =+C154*63/302 -> 1.668874172 | D156: =+D153 -> 20.15818182 | E156: =C156*D156 -> 33.64146899
A157: Desc. Semanal Remunerado HE 50% | B157: hora | C157: =+C154*63/302 -> 1.668874172 | D157: =+D154 -> 18.14236364 | E157: =C157*D157 -> 30.2773221
A158: Desc. Semanal Remunerado Ad. Notur. | B158: hora | C158: =+C155*63/302 -> 20.65231788 | D158: =+D155 -> 2.015818182 | E158: =C158*D158 -> 41.63131788
A159: Adicional de Insalubridade | B159: % | C159: =+C143 -> 40 | D159: =+D89 -> 1100 | E159: =C159*D159/100 -> 440
A160: Soma | E160: =SUM(E152:E159) -> 2828.920473
A161: Encargos Sociais | B161: % | C161: =+C61 -> 75.84 | D161: =E160 -> 2828.920473 | E161: =D161*C161/100 -> 2145.453286
A162: Total por Fiscal | E162: =E160+E161 -> 4974.373759
A163: Total do Efetivo | B163: homem | C163: 1 | D163: =E162 -> 4974.373759 | E163: =C163*D163 -> 4974.373759
F164: =E163 -> 4974.373759
A166: 1.9. Auxiliar Operacional Turno do Dia/vespertino
A167: Discriminação | B167: Unidade | C167: Quantidade | D167: Preço unitário | E167: Subtotal | F167: Total (R$)
A168: Salário Normal | B168: mês | C168: 1 | D168: =+D152 -> 1777.4 | E168: =C168*D168 -> 1777.4
A169: Horas Extras (100%) | B169: hora | C169: =+C139 -> 8 | D169: =D168/220*2 -> 16.15818182 | E169: =C169*D169 -> 129.2654545
A170: Horas Extras (50%) | B170: hora | C170: =+C140 -> 16 | D170: =D168/220*1.5 -> 12.11863636 | E170: =C170*D170 -> 193.8981818
A171: Desc. Semanal Remunerado HE 100% | B171: hora | C171: =+C169*63/302 -> 1.668874172 | D171: =+D169 -> 16.15818182 | E171: =C171*D171 -> 26.96597231
A172: Desc. Semanal Remunerado HE 50% | B172: hora | C172: =+C170*63/302 -> 3.337748344 | D172: =+D170 -> 12.11863636 | E172: =C172*D172 -> 40.44895846
A173: Soma | E173: =SUM(E168:E170) -> 2100.563636
A174: Encargos Sociais | B174: % | C174: =+C61 -> 75.84 | D174: =E173 -> 2100.563636 | E174: =D174*C174/100 -> 1593.067462
A175: Total por Auxiliar Operacional | E175: =E173+E174 -> 3693.631098
A176: Total do Efetivo | B176: homem | C176: 2 | D176: =E175 -> 3693.631098 | E176: =C176*D176 -> 7387.262196
F177: =E176 -> 7387.262196
A179: 1.10. Auxiliar Operacional Turno da Noite
A180: Discriminação | B180: Unidade | C180: Quantidade | D180: Preço unitário | E180: Subtotal | F180: Total (R$)
A181: Salário Normal | B181: mês | C181: 1 | D181: =+D168 -> 1777.4 | E181: =C181*D181 -> 1777.4
A182: Horas Extras (100%) | B182: hora | C182: =+C153 -> 8 | D182: =D181/220*2 -> 16.15818182 | E182: =C182*D182 -> 129.2654545
A183: Horas Extras (50%) noturna | B183: hora | C183: =+C154 -> 8 | D183: =D181/220*1.5*1.2 -> 14.54236364 | E183: =C183*D183 -> 116.3389091
A184: Adicional Noturno | B184: hora | C184: =C71 -> 99 | D184: =D181/220*0.2 -> 1.615818182 | E184: =C184*D184 -> 159.966
A185: Desc. Semanal Remunerado HE 100% | B185: hora | C185: =+C183*63/302 -> 1.668874172 | D185: =+D182 -> 16.15818182 | E185: =C185*D185 -> 26.96597231
A186: Desc. Semanal Remunerado HE 50% | B186: hora | C186: =+C183*63/302 -> 1.668874172 | D186: =+D183 -> 14.54236364 | E186: =C186*D186 -> 24.26937508
A187: Desc. Semanal Remunerado Ad. Notur. | B187: hora | C187: =+C184*63/302 -> 20.65231788 | D187: =+D184 -> 1.615818182 | E187: =C187*D187 -> 33.37039073
A188: Soma | E188: =SUM(E181:E184) -> 2182.970364
A189: Encargos Sociais | B189: % | C189: =+C174 -> 75.84 | D189: =E188 -> 2182.970364 | E189: =D189*C189/100 -> 1655.564724
A190: Total por Auxiliar Operacional | E190: =E188+E189 -> 3838.535087
A191: Total do Efetivo | B191: homem | C191: 1 | D191: =E190 -> 3838.535087 | E191: =C191*D191 -> 3838.535087
F192: =E191 -> 3838.535087
A194: 1.11. Gerente Operacional
A195: Discriminação | B195: Unidade | C195: Quantidade | D195: Preço unitário | E195: Subtotal | F195: Total (R$)
A196: Salário Normal | B196: mês | C196: 1 | D196: =8.5*D89 -> 9350 | E196: =C196*D196 -> 9350
A197: Encargos Sociais | B197: % | C197: =+C61 -> 75.84 | D197: =E196 -> 9350 | E197: =C197*D197/100 -> 7091.04
A198: Total de Gerente Operacional | B198: homem | C198: 1 | D198: =E196+E197 -> 16441.04 | E198: =C198*D198 -> 16441.04
F199: =E198 -> 16441.04
A201: 1.12. Vale Transporte
A202: Discriminação | B202: Unidade | C202: Quantidade | D202: Preço unitário | E202: Subtotal | F202: Total (R$)
A203: Operário | B203: vale | C203: =(C63+C79)*52 -> 468 | D203: =((52*1.5*4.55)-(E54*0.06))/52 -> 5.457773077 | E203: =C203*D203 -> 2554.2378
A204: Motorista | B204: vale | C204: =(C93+C109+C120+C133)*52 -> 1612 | D204: =((52*1.5*4.55)-(E84*0.06))/52 -> 4.742388462 | E204: =C204*D204 -> 7644.7302
A205: Fiscal | B205: vale | C205: =+(C147+C163)*52 -> 156 | D205: =((52*1.5*4.55)-(E138*0.06))/52 -> 4.774153846 | E205: =C205*D205 -> 744.768
A206: Auxiliar Operacional | B206: vale | C206: =+(C176+C191)*52 -> 156 | D206: =((52*1.5*4.55)-(E168*0.06))/52 -> 4.774153846 | E206: =C206*D206 -> 744.768
F207: =SUM(E203:E206) -> 11688.504
A209: 1.13. Auxílio Alimentação/Alimentação
A210: Discriminação | B210: Unidade | C210: Quantidade | D210: Preço unitário | E210: Subtotal | F210: Total (R$)
A211: Operários e outros | B211: vale | C211: =(C63+C79+C147+C163+C176+C191+C198)*26 -> 416 | D211: =18.2*0.81 -> 14.742 | E211: =C211*D211 -> 6132.672
A212: =+A204 -> Motorista | B212: Unidade | C212: =(C93+C109) -> 29 | D212: =90.93*0.8 -> 72.744 | E212: =C212*D212 -> 2109.576
A213: Motorista | B213: vale | C213: =+C212*26 -> 754 | D213: =11.98*0.8 -> 9.584 | E213: =C213*D213 -> 7226.336
A214: Motorista Automóvel | B214: Unidade | C214: =+C120+C133 -> 2 | D214: 148.14 | E214: =C214*D214 -> 296.28
A215: Motorista Automóvel | B215: vale | C215: =+C214*26 -> 52 | D215: =23*0.8 -> 18.4 | E215: =C215*D215 -> 956.8
F216: =SUM(E211:E215) -> 16721.664
A218: 1.14. Plano de Benefício Social Familiar
A219: Discriminação | B219: Unidade | C219: Quantidade | D219: Preço unitário | E219: Subtotal | F219: Total (R$)
A220: =+A211 -> Operários e outros | B220: Unidade | C220: =+C198+C191+C176+C163+C147+C79+C63 -> 16 | D220: 15.62 | E220: =C220*D220 -> 249.92
F221: =SUM(E220:E220) -> 249.92
A224: Custo Mensal com Mão-de-obra (R$/mês) .............................................................................................. | F224: =SUM(F54:F221) -> 252745.0903
A227: 2. Uniformes e Equipamentos de Proteção Individual
A229: 2.1. Uniformes e EPI's para Operário
... 329 more rows
